bitfinex/quotes_SOLUSD_20220302
["timestamp","ask_amount","ask_price","bid_price","bid_amount"]
[1646183364840,102.5,99.459,99.38,15.0935]
[1646183365041,102.5,99.459,99.371,58.00607772]
[1646183365442,2.49669099,99.458,99.371,58.00607772]
[1646183366041,102.5,99.449,99.371,58.00607772]
[1646183367042,2.49669099,99.458,99.371,58.00607772]
[1646183368044,102.5,99.439,99.371,58.00607772]
[1646183372767,15.0975,99.44,99.371,58.00607772]
[1646183372968,4.022,99.459,99.371,58.00607772]
[1646183373170,117.5949,99.46,99.371,58.00607772]
[1646183373572,15.0949,99.46,99.371,58.00607772]
[1646183373770,5.0,99.476,99.372,2.57366348]
[1646183373972,5.0,99.476,99.372,5.1102112]
[1646183374170,102.5,99.503,99.373,1.94649375]
[1646183374369,102.5,99.503,99.374,0.29912672]
[1646183374770,117.5896,99.49,99.38,15.0936]
[1646183374970,102.5,99.483,99.381,0.29912672]
[1646183375170,15.0896,99.49,99.381,2.8727902]
[1646183375571,15.0896,99.49,99.382,2.57366348]
[1646183375777,15.0896,99.49,99.383,0.29912672]
[1646183376173,117.5896,99.49,99.4,15.0904]
[1646183376373,117.5896,99.49,99.401,54.99827649]
[1646183377271,102.5,99.483,99.401,54.99827649]
[1646183377470,117.5896,99.49,99.401,54.99827649]
[1646183377870,2.49669099,99.506,99.41,15.089]
[1646183378071,22.5642,99.505,99.41,15.089]
[1646183379172,15.0882,99.5,99.41,15.089]
[1646183379574,117.5882,99.5,99.41,15.089]
[1646183381974,2.49607269,99.499,99.402,24.716]
[1646183382175,102.5,99.479,99.401,54.99827649]
[1646183382374,102.5,99.479,99.376,24.4945]
[1646183382573,102.5,99.477,99.376,24.4945]
[1646183382774,102.5,99.469,99.376,24.4945]
[1646183382973,106.522,99.469,99.376,24.4945]
[1646183383176,2.49607269,99.468,99.376,24.4945]
[1646183383376,102.5,99.449,99.377,55.19248186]
[1646183384376,102.5,99.448,99.377,55.19248186]
[1646183385075,117.5974,99.44,99.377,55.19248186]
[1646183385276,117.5974,99.44,99.36,15.0967]
[1646183386175,117.5974,99.44,99.368,53.30288767]
[1646183386379,117.5974,99.44,99.344,46.597]
[1646183386577,102.5,99.419,99.344,46.597]
[1646183387580,104.99607269,99.439,99.344,46.597]
[1646183387983,2.49607269,99.438,99.344,46.597]
[1646183388182,2.49607269,99.438,99.33,15.1013]
[1646183388387,102.5,99.409,99.331,55.53196657]
[1646183389082,15.1017,99.41,99.331,55.53196657]
[1646183389683,5.0,99.409,99.331,55.53196657]
[1646183389883,4.025,99.428,99.331,55.53196657]
[1646183389884,24.2478,99.429,99.34,15.0998]
[1646183390487,24.2478,99.429,99.341,2.57366348]
[1646183390884,24.2478,99.429,99.36,15.0964]
[1646183391086,24.2478,99.429,99.361,56.34384355]
[1646183391689,102.5,99.428,99.361,56.34384355]
[1646183392091,102.5,99.419,99.361,56.34384355]
[1646183392590,117.6003,99.42,99.361,56.34384355]
[1646183392990,117.6003,99.42,99.327,2.57366348]
[1646183393191,117.6003,99.42,99.33,15.1011]
[1646183393390,4.025,99.419,99.33,15.1011]
[1646183393591,102.5,99.409,99.31,14.86417432]
[1646183394093,102.5,99.409,99.311,48.67533727]
[1646183394389,2.48960152,99.433,99.32,15.1025]
[1646183394592,2.48960152,99.433,99.32,27.2525]
[1646183394790,15.0998,99.43,99.321,15.12417432]
[1646183395190,15.0998,99.43,99.322,15.12417432]
[1646183395391,117.5998,99.43,99.322,15.12417432]
[1646183395593,117.5998,99.43,99.323,15.12417432]
[1646183395892,117.5998,99.43,99.324,2.57366348]
[1646183396093,117.5998,99.43,99.34,15.0983]
[1646183396292,117.5998,99.43,99.341,43.78152465]
[1646183397793,2.48960152,99.429,99.341,43.78152465]
[1646183397994,2.48960152,99.429,99.35,15.0978]
[1646183400400,117.5998,99.43,99.35,15.0978]
[1646183402401,46.9772,99.439,99.35,15.0978]
[1646183402603,4.024,99.457,99.351,0.11201814]
[1646183402804,47.2948,99.478,99.38,15.0935]
[1646183403001,5.0,99.474,99.381,60.77136743]
[1646183403202,47.2948,99.478,99.381,60.77136743]
[1646183403402,47.2948,99.478,99.381,0.11352489]
[1646183403403,5.17191268,99.477,99.381,0.11352489]
[1646183403704,102.5,99.459,99.381,0.11352489]
[1646183403905,102.5,99.457,99.351,47.292]
[1646183404203,102.5,99.457,99.34,15.0985]
[1646183404204,102.5,99.455,99.322,5.0]
[1646183404408,102.5,99.439,99.304,59.90723317]
[1646183404606,102.5,99.399,99.304,59.90723317]
[1646183405031,102.5,99.397,99.304,59.90723317]
[1646183405231,102.5,99.397,99.303,48.6073]
[1646183405434,5.0,99.391,99.227,1.98359104]
[1646183405731,102.5,99.339,99.249,47.2952]
[1646183406331,102.5,99.339,99.25,52.80838138]
[1646183406530,102.5,99.339,99.25,67.92008138]
[1646183407833,102.5,99.329,99.25,52.80838138]
[1646183408034,110.14,99.329,99.25,52.80838138]
[1646183408334,112.62960152,99.329,99.25,52.80838138]
[1646183408934,104.98960152,99.329,99.25,52.80838138]
[1646183409137,102.5,99.319,99.25,52.80838138]
[1646183409537,104.98953322,99.319,99.25,52.80838138]
[1646183409937,102.5,99.319,99.25,52.80838138]
[1646183410145,102.5,99.329,99.25,52.80838138]
[1646183410738,4.027,99.339,99.25,52.80838138]
[1646183410938,102.5,99.34,99.25,52.80838138]
[1646183412241,102.5,99.34,99.25,67.92128138]
[1646183412439,23.1885,99.344,99.25,67.92128138]
[1646183412638,102.5,99.343,99.25,67.92128138]
[1646183413041,2.48953322,99.342,99.25,67.92128138]
[1646183414140,2.48953322,99.342,99.25,52.80838138]
[1646183414345,102.5,99.34,99.231,49.664]
[1646183414641,102.5,99.329,99.19,12.15]
[1646183414843,4.029,99.328,99.185,49.664]
[1646183415040,102.5,99.327,99.185,49.664]
[1646183415240,104.98953322,99.327,99.186,46.2096307]
[1646183415441,131.21111439,99.327,99.21,15.1188]
[1646183415640,102.5,99.325,99.211,51.62453155]
[1646183415840,4.029,99.324,99.211,51.62453155]
[1646183416040,102.5,99.309,99.211,51.62453155]
[1646183416441,102.5,99.299,99.211,51.62453155]
[1646183416641,102.5,99.289,99.211,51.62453155]
[1646183417041,4.03,99.288,99.211,51.62453155]
[1646183417243,102.5,99.287,99.211,51.62453155]
[1646183417444,104.98953322,99.287,99.211,51.62453155]
[1646183418243,2.48953322,99.286,99.211,51.62453155]
[1646183418846,102.5,99.284,99.171,22.9857]
[1646183419045,12.15,99.27,99.171,22.9857]
[1646183419344,102.5,99.269,99.148,4.03]
[1646183419545,143.67728024,99.269,99.144,24.9221]
[1646183419744,102.5,99.267,99.15,54.27116342]
[1646183420145,104.98953322,99.267,99.15,69.39876342]
[1646183420548,23.6117,99.269,99.151,6.42366273]
[1646183420747,23.6117,99.269,99.16,12.15]
[1646183421147,12.15,99.3,99.16,12.15]
[1646183421148,2.50284529,99.297,99.19,15.1218]
[1646183421347,5.0,99.281,99.191,47.18246162]
[1646183421647,5.0,99.281,99.191,49.7561251]
[1646183421848,5.0,99.281,99.192,2.57366348]
[1646183422449,102.5,99.282,99.192,2.57366348]
[1646183422948,4.03,99.3,99.192,2.57366348]
[1646183423148,27.2405,99.309,99.2,15.1202]
[1646183423546,27.2405,99.309,99.201,2.57366348]
[1646183423947,102.5,99.308,99.201,2.57366348]
[1646183424247,4.03,99.307,99.201,2.57366348]
[1646183424547,102.5,99.308,99.201,2.57366348]
[1646183424548,106.53,99.308,99.201,2.57366348]
[1646183424748,102.5,99.308,99.201,2.57366348]
[1646183425154,102.5,99.308,99.221,55.0373158]
[1646183425748,4.029,99.307,99.221,55.0373158]
[1646183426151,102.5,99.306,99.221,55.0373158]
[1646183426349,4.029,99.305,99.221,55.0373158]
[1646183426551,102.5,99.304,99.221,55.0373158]
[1646183426752,4.029,99.303,99.221,55.0373158]
[1646183427654,4.029,99.304,99.221,55.0373158]
[1646183427850,4.029,99.307,99.221,55.0373158]
[1646183428250,2.50284529,99.303,99.221,55.0373158]
[1646183428452,102.5,99.308,99.221,55.0373158]
[1646183429255,23.2105,99.309,99.222,2.57366348]
[1646183431057,24.2667,99.319,99.23,15.1163]
[1646183431276,7.50284529,99.336,99.231,2.22360406]
[1646183431277,5.0,99.336,99.231,2.22360406]
[1646183431459,4.027,99.367,99.231,4.79726754]
[1646183431656,12.15,99.39,99.233,2.56847315]
[1646183432056,4.027,99.389,99.235,0.42507121]
[1646183432256,106.527,99.389,99.261,2.40121507]
[1646183432456,102.5,99.389,99.261,59.73385003]
[1646183432662,102.5,99.389,99.262,2.57366348]
[1646183432859,102.5,99.387,99.262,2.57366348]
[1646183433056,5.0,99.384,99.261,57.52417807]
[1646183433258,102.5,99.379,99.261,57.52417807]
[1646183433458,102.5,99.369,99.261,57.52417807]
[1646183433658,102.5,99.369,99.261,57.09910686]
[1646183434057,102.5,99.367,99.261,57.09910686]
[1646183434357,5.0,99.361,99.261,57.09910686]
[1646183434957,2.50284529,99.36,99.261,57.09910686]
[1646183435559,5.0,99.356,99.261,57.09910686]
[1646183437062,102.5,99.365,99.261,57.09910686]
[1646183437869,2.50284529,99.364,99.261,57.09910686]
[1646183438068,102.5,99.359,99.261,57.09910686]
[1646183438265,4.027,99.358,99.261,57.09910686]
[1646183439284,3.027,99.358,99.261,57.09910686]
[1646183440086,105.527,99.358,99.261,57.09910686]
[1646183441087,2.50284529,99.364,99.261,57.09910686]
[1646183441088,4.027,99.363,99.261,57.09910686]
[1646183441291,102.5,99.363,99.261,57.09910686]
[1646183441488,15.1131,99.36,99.261,57.09910686]
[1646183441689,102.5,99.359,99.261,57.09910686]
[1646183441890,131.12579141,99.359,99.261,57.09910686]
[1646183442089,126.12579141,99.359,99.261,57.09910686]
[1646183442489,5.0,99.354,99.261,57.09910686]
[1646183444090,23.3554,99.353,99.261,57.09910686]
[1646183444292,102.5,99.352,99.261,57.09910686]
[1646183444691,23.3554,99.353,99.261,57.09910686]
[1646183444891,23.3554,99.353,99.262,2.57366348]
[1646183445091,102.5,99.352,99.262,2.57366348]
[1646183445293,102.5,99.352,99.261,57.09910686]
[1646183445796,102.5,99.352,99.262,2.57366348]
[1646183446194,102.5,99.352,99.261,57.09910686]
[1646183447194,5.0,99.364,99.27,15.1105]
[1646183447395,5.0,99.364,99.28,12.15]
[1646183447594,47.4215,99.399,99.29,12.15]
[1646183447994,47.4215,99.399,99.291,55.76514888]
[1646183448195,47.4215,99.399,99.31,15.1037]
[1646183448398,102.5,99.398,99.311,45.34046044]
[1646183449596,102.5,99.398,99.292,25.49086348]
[1646183449597,102.5,99.389,99.292,25.49086348]
[1646183449798,4.025,99.388,99.292,22.9172]
[1646183450000,102.5,99.389,99.292,22.9172]
[1646183450602,106.525,99.398,99.293,42.91048216]
[1646183451104,102.5,99.379,99.293,42.91048216]
[1646183451699,102.5,99.391,99.293,42.91048216]
[1646183452100,15.107,99.39,99.3,15.1055]
[1646183452301,47.4215,99.399,99.3,15.1055]
[1646183452502,77.2046,99.43,99.3,15.1055]
[1646183452503,4.025,99.429,99.301,2.57366348]
[1646183452702,102.5,99.428,99.302,23.1425692]
[1646183452901,4.025,99.427,99.302,46.14876352]
[1646183453103,4.025,99.427,99.303,2.57366348]
[1646183453303,4.025,99.427,99.304,24.0046]
[1646183453502,106.525,99.428,99.305,5.0]
[1646183453804,106.525,99.428,99.31,12.15]
[1646183454002,106.525,99.428,99.33,15.1011]
[1646183454403,106.525,99.428,99.331,49.94893853]
[1646183455805,102.5,99.428,99.331,49.94893853]
[1646183456204,102.5,99.419,99.331,49.94893853]
[1646183457710,117.4237,99.419,99.331,49.94893853]
[1646183458711,102.5,99.409,99.31,15.1033]
[1646183458919,102.5,99.407,99.295,2.57366348]
[1646183459113,102.5,99.399,99.28,24.0774]
[1646183459713,102.5,99.397,99.281,46.92379301]
[1646183459917,15.1092,99.38,99.281,46.92379301]
[1646183460115,24.491,99.379,99.29,15.1071]
[1646183462019,24.491,99.379,99.291,2.57366348]
[1646183462217,24.06,99.396,99.3,15.1056]
[1646183462418,24.06,99.396,99.301,45.38196462]
[1646183462618,24.06,99.396,99.301,47.9556281]
[1646183462817,16.175,99.43,99.302,2.57366348]
[1646183462818,5.0,99.419,99.302,2.57366348]
[1646183463020,5.0,99.419,99.303,2.40447343]
[1646183463219,5.0,99.419,99.304,2.61449666]
[1646183463420,5.0,99.419,99.305,1.94564752]
[1646183463621,5.0,99.419,99.32,12.15]
[1646183463824,5.0,99.419,99.321,58.81695739]
[1646183464023,5.0,99.419,99.322,5.0]
[1646183464219,4.025,99.449,99.322,7.57366348]
[1646183464520,102.5,99.435,99.322,5.0]
[1646183464722,4.025,99.434,99.323,22.7871]
[1646183464921,102.5,99.433,99.323,22.7871]
[1646183465137,4.025,99.432,99.323,22.7871]
[1646183465338,102.5,99.429,99.33,15.1003]
[1646183465937,102.5,99.427,99.33,15.1003]
[1646183468239,22.5433,99.428,99.33,15.1003]
[1646183469240,102.5,99.427,99.33,15.1003]
[1646183469440,22.5433,99.428,99.331,2.57366348]
[1646183469640,22.5433,99.428,99.35,15.0972]
[1646183469840,22.5433,99.428,99.351,46.56121729]
[1646183471041,22.5433,99.428,99.36,15.0965]
[1646183472845,47.739,99.451,99.36,15.0965]
[1646183473644,102.5,99.45,99.36,15.0965]
[1646183473844,138.79692474,99.45,99.36,15.0965]
[1646183474045,138.79692474,99.45,99.351,46.56121729]
[1646183474249,102.5,99.448,99.351,46.56121729]
[1646183474746,43.81552474,99.449,99.351,46.56121729]
[1646183475346,15.0992,99.44,99.351,46.56121729]
[1646183475946,102.5,99.439,99.351,46.56121729]
[1646183477548,102.5,99.429,99.351,46.56121729]
[1646183480048,5.0,99.424,99.351,46.56121729]
[1646183481155,102.5,99.432,99.351,46.56121729]
[1646183481350,23.9464,99.433,99.351,46.56121729]
[1646183481753,15.0988,99.45,99.351,46.56121729]
[1646183481953,22.51,99.447,99.351,46.56121729]
[1646183482952,102.5,99.446,99.351,46.56121729]
[1646183483252,102.5,99.446,99.36,15.0965]
[1646183483852,22.51,99.447,99.36,15.0965]
[1646183485455,102.5,99.446,99.36,15.0965]
[1646183485854,102.5,99.446,99.351,46.56121729]
[1646183486055,102.5,99.439,99.351,46.56121729]
[1646183486455,105.00260573,99.439,99.351,46.56121729]
[1646183486654,102.5,99.437,99.351,46.56121729]
[1646183487057,21.19912474,99.438,99.351,46.56121729]
[1646183488057,102.5,99.446,99.351,46.56121729]
[1646183488256,22.51,99.447,99.351,46.56121729]
[1646183488659,22.51,99.447,99.351,49.13488077]
[1646183489061,15.0977,99.45,99.36,15.0968]
[1646183489265,23.8165,99.469,99.36,15.0968]
[1646183489461,23.8165,99.469,99.361,26.98446348]
[1646183489863,23.8165,99.469,99.362,2.57366348]
[1646183491063,23.8165,99.469,99.38,15.0927]
[1646183491287,23.8165,99.469,99.381,51.26113585]
[1646183491468,23.8165,99.469,99.381,53.83479933]
[1646183491669,5.0,99.484,99.381,53.83479933]
[1646183491867,21.19912474,99.485,99.382,26.29886348]
[1646183492269,21.19912474,99.485,99.383,2.57366348]
[1646183493067,21.19912474,99.485,99.39,15.0923]
[1646183493467,21.19912474,99.485,99.391,2.57366348]
[1646183493869,102.5,99.484,99.391,2.57366348]
[1646183494068,102.5,99.484,99.382,23.7252]
[1646183494269,123.69912474,99.483,99.4,15.0905]
[1646183494470,24.004,99.482,99.383,27.9009]
[1646183494772,102.5,99.481,99.383,23.8789]
[1646183494970,123.69912474,99.481,99.383,23.8789]
[1646183495172,102.5,99.479,99.383,23.8789]
[1646183495572,102.5,99.477,99.383,23.8789]
[1646183495972,5.0,99.474,99.383,23.8789]
[1646183496373,21.19912474,99.478,99.383,26.45256348]
[1646183496774,21.19912474,99.478,99.383,23.8789]
[1646183497377,102.5,99.477,99.383,23.8789]
[1646183498176,102.5,99.477,99.39,15.0921]
[1646183499296,23.6261,99.481,99.39,15.0921]
[1646183499496,23.6261,99.481,99.391,2.57366348]
[1646183499899,23.6261,99.481,99.411,58.12939326]
[1646183503901,18.26733038,99.481,99.411,58.12939326]
[1646183507605,102.5,99.48,99.411,58.12939326]
[1646183507804,18.26733038,99.481,99.411,58.12939326]
[1646183512909,8.95273353,99.48,99.411,58.12939326]
[1646183513509,8.95273353,99.48,99.39,15.0911]
[1646183513709,102.5,99.479,99.383,23.8789]
[1646183514012,0.13268282,99.478,99.383,23.8789]
[1646183514209,102.5,99.477,99.383,23.8789]
[1646183514414,111.44070473,99.477,99.383,23.8789]
[1646183514612,5.0,99.471,99.384,60.24921191]
[1646183514813,102.5,99.469,99.384,60.24921191]
[1646183515225,8.94070473,99.468,99.384,60.24921191]
[1646183515713,24.4521,99.47,99.384,60.24921191]
[1646183515714,102.5,99.469,99.384,60.24921191]
[1646183515913,5.0,99.464,99.384,60.24921191]
[1646183516113,15.0955,99.46,99.384,60.24921191]
[1646183516715,5.0,99.459,99.384,60.24921191]
[1646183517117,5.0,99.456,99.384,60.24921191]
[1646183517417,8.94731325,99.458,99.384,60.24921191]
[1646183517615,24.4521,99.47,99.384,60.24921191]
[1646183518619,4.022,99.503,99.39,15.092]
[1646183518819,5.0,99.504,99.391,2.32901575]
[1646183519019,5.0,99.504,99.391,104.82901575]
[1646183519218,22.6104,99.506,99.393,102.5]
[1646183519420,22.6104,99.506,99.394,2.37424349]
[1646183519619,8.98690407,99.505,99.394,4.94790697]
[1646183520018,8.98690407,99.505,99.42,15.0867]
[1646183520219,8.98690407,99.505,99.421,43.29557479]
[1646183520422,8.98690407,99.505,99.421,45.86923827]
[1646183520618,8.98690407,99.505,99.422,2.57366348]
[1646183522421,102.5,99.504,99.421,43.29557479]
[1646183522821,15.0895,99.5,99.409,2.57366348]
[1646183523025,15.0895,99.5,99.341,106.522]
[1646183523026,102.5,99.499,99.389,2.57366348]
[1646183523223,1.28223394,99.498,99.366,2.57366348]
[1646183523523,102.5,99.497,99.366,2.57366348]
[1646183523723,5.0,99.489,99.366,2.57366348]
[1646183523924,102.5,99.479,99.384,55.38392469]
[1646183524125,102.5,99.477,99.384,55.38392469]
[1646183524325,102.5,99.469,99.384,55.38392469]
[1646183524527,24.4881,99.477,99.384,55.38392469]
[1646183524727,8.98690407,99.468,99.384,55.38392469]
[1646183525127,102.5,99.466,99.384,55.38392469]
[1646183525533,102.5,99.464,99.384,55.38392469]
[1646183525929,102.5,99.459,99.384,55.38392469]
[1646183526330,102.5,99.457,99.384,55.38392469]
[1646183526532,102.5,99.457,99.37,15.0953]
[1646183526731,102.5,99.455,99.349,27.19386348]
[1646183527032,11.48960274,99.456,99.349,27.19386348]
[1646183527033,15.1009,99.42,99.349,24.6202]
[1646183527629,15.1009,99.42,99.35,60.38477769]
[1646183528431,102.5,99.419,99.35,60.38477769]
[1646183529032,15.1028,99.41,99.322,27.52286348]
[1646183529233,15.1028,99.41,99.322,24.9492]
[1646183529234,102.5,99.409,99.322,24.9492]
[1646183529632,5.0,99.406,99.322,24.9492]
[1646183529833,5.0,99.406,99.301,24.2666]
[1646183529834,102.5,99.405,99.301,24.2666]
[1646183530034,102.5,99.405,99.245,2.19211887]
[1646183530035,0.11187461,99.404,99.26,12.15]
[1646183530238,0.13591925,99.398,99.27,15.1098]
[1646183530434,0.13591925,99.398,99.273,2.57366348]
[1646183530636,4.025,99.397,99.273,2.57366348]
[1646183530836,102.5,99.396,99.27,15.1098]
[1646183531135,5.0,99.376,99.271,55.84585123]
[1646183531332,102.5,99.369,99.271,55.84585123]
[1646183531533,102.5,99.359,99.271,55.84585123]
[1646183531735,0.13591925,99.358,99.271,55.84585123]
[1646183531932,2.63861792,99.358,99.271,55.84585123]
[1646183532333,2.50269867,99.357,99.271,55.84585123]
[1646183532950,0.13591925,99.358,99.271,55.84585123]
[1646183533652,0.20583543,99.355,99.212,5.0]
[1646183533851,0.20583543,99.353,99.212,5.0]
[1646183534151,102.5,99.339,99.19,12.15]
[1646183534352,15.1188,99.31,99.22,15.1171]
[1646183534553,15.1188,99.31,99.221,52.00636168]
[1646183535856,102.5,99.309,99.221,52.00636168]
[1646183536058,102.5,99.299,99.221,52.00636168]
[1646183536257,15.1183,99.3,99.221,52.00636168]
[1646183536656,2.50269867,99.298,99.221,52.00636168]
[1646183536856,12.15,99.3,99.221,52.00636168]
[1646183537057,5.0,99.291,99.221,52.00636168]
[1646183537858,15.4766,99.317,99.221,52.00636168]
[1646183539062,15.4766,99.317,99.23,15.116]
[1646183540869,15.4766,99.317,99.221,52.00636168]
[1646183540870,15.1174,99.31,99.221,52.00636168]
[1646183541268,105.00269867,99.309,99.221,52.00636168]
[1646183541469,105.00269867,99.309,99.18,12.15]
[1646183541668,1.22637434,99.306,99.162,5.0]
[1646183541872,0.219415,99.304,99.162,5.0]
[1646183542071,15.1259,99.26,99.17,15.1246]
[1646183542271,22.0759,99.26,99.162,5.0]
[1646183542470,22.0759,99.26,99.163,48.49532518]
[1646183542672,105.00269867,99.259,99.163,48.49532518]
[1646183542872,0.219415,99.257,99.163,48.49532518]
[1646183543071,15.1315,99.24,99.163,48.49532518]
[1646183543271,27.2815,99.24,99.163,48.49532518]
[1646183543687,29.78419867,99.24,99.163,48.49532518]
[1646183544474,5.0,99.236,99.163,48.49532518]
[1646183544673,27.2815,99.24,99.163,48.49532518]
[1646183544873,15.1315,99.24,99.163,48.49532518]
[1646183546274,102.5,99.239,99.163,48.49532518]
[1646183546976,102.5,99.229,99.163,48.49532518]
[1646183548178,102.5,99.219,99.163,48.49532518]
[1646183548580,12.15,99.24,99.163,48.49532518]
[1646183548581,102.5,99.233,99.163,48.49532518]
[1646183548779,5.0,99.239,99.163,48.49532518]
[1646183548979,27.4704,99.26,99.163,48.49532518]
[1646183549180,7.50269856,99.259,99.163,48.49532518]
[1646183549483,5.0,99.259,99.163,48.49532518]
[1646183549681,102.5,99.256,99.163,48.49532518]
[1646183550179,15.1263,99.26,99.163,48.49532518]
[1646183551782,102.5,99.256,99.163,48.49532518]
[1646183556087,15.1263,99.26,99.163,48.49532518]
[1646183556088,102.5,99.249,99.163,48.49532518]
[1646183557290,2.49602393,99.248,99.163,48.49532518]
[1646183557489,102.5,99.239,99.163,48.49532518]
[1646183557889,2.49602393,99.238,99.163,48.49532518]
[1646183558090,3.94880943,99.238,99.109,4.032]
[1646183558291,1.2098458,99.236,99.101,4.033]
[1646183558592,102.5,99.234,99.1,15.134]
[1646183558809,102.5,99.219,99.1,15.134]
[1646183559007,102.5,99.209,99.101,55.29194773]
[1646183559208,102.5,99.209,99.11,15.1333]
[1646183559607,2.49602393,99.208,99.11,15.1333]
[1646183559808,15.1333,99.21,99.11,15.1333]
[1646183560007,23.8752,99.219,99.11,15.1333]
[1646183560208,15.1303,99.23,99.11,27.2833]
[1646183560410,15.1303,99.23,99.14,15.1289]
[1646183560710,24.1073,99.235,99.141,54.31641423]
[1646183560909,102.5,99.234,99.141,54.31641423]
[1646183561510,24.1073,99.235,99.141,54.31641423]
[1646183561911,102.5,99.234,99.141,54.31641423]
[1646183562210,24.1073,99.235,99.15,15.1266]
[1646183564012,15.1242,99.27,99.151,2.46611005]
[1646183564210,15.1242,99.27,99.18,15.1218]
[1646183564411,2.49602393,99.286,99.181,45.52702466]
[1646183564614,14.9616,99.286,99.181,45.52702466]
[1646183564811,23.12283702,99.302,99.181,45.52702466]
[1646183565011,102.5,99.301,99.181,45.52702466]
[1646183565212,2.49602393,99.285,99.181,45.52702466]
[1646183565411,102.5,99.299,99.181,45.52702466]
[1646183565612,4.03,99.298,99.181,45.33475979]
[1646183565813,4.03,99.298,99.2,15.1207]
[1646183566015,102.5,99.299,99.2,15.1207]
[1646183566421,15.1195,99.3,99.2,15.1207]
[1646183566614,25.61886095,99.317,99.201,2.39816542]
[1646183566815,15.1164,99.32,99.23,15.116]
[1646183567114,15.1164,99.32,99.231,59.1159933]
[1646183567314,102.5,99.319,99.231,59.1159933]
[1646183567713,2.49602393,99.318,99.231,59.1159933]
[1646183569114,15.1169,99.31,99.231,59.1159933]
[1646183569719,5.0,99.324,99.24,15.1146]
[1646183569916,2.49602393,99.344,99.241,0.19791008]
[1646183570116,15.1119,99.35,99.241,0.19791008]
[1646183570317,4.027,99.349,99.241,0.19791008]
[1646183570916,25.61255957,99.348,99.241,0.19791008]
[1646183571117,4.027,99.347,99.232,0.19791008]
[1646183571317,132.13955957,99.347,99.232,0.19791008]
[1646183571620,102.5,99.345,99.232,0.19791008]
[1646183571916,102.5,99.339,99.231,59.1159933]
[1646183572117,4.027,99.338,99.231,59.1159933]
[1646183572316,102.5,99.337,99.231,59.1159933]
[1646183572518,4.027,99.336,99.231,59.1159933]
[1646183572917,102.5,99.335,99.231,59.1159933]
[1646183573117,102.5,99.319,99.231,59.1159933]
[1646183573417,15.1159,99.32,99.231,59.1159933]
[1646183573616,2.48972255,99.318,99.231,59.1159933]
[1646183574019,104.98972255,99.318,99.231,59.1159933]
[1646183574219,102.5,99.309,99.231,59.1159933]
[1646183574618,2.48972255,99.308,99.191,45.448]
[1646183574817,102.5,99.299,99.191,45.448]
[1646183575219,2.48972255,99.298,99.191,45.448]
[1646183575720,2.48972255,99.298,99.208,59.52461583]
[1646183576120,102.5,99.289,99.208,59.52461583]
[1646183576523,2.48972255,99.288,99.208,59.52461583]
[1646183577122,102.5,99.279,99.208,59.52461583]
[1646183577421,102.5,99.279,99.191,45.448]
[1646183577621,102.5,99.279,99.171,4.03]
[1646183578222,102.5,99.286,99.171,4.03]
[1646183578422,102.5,99.269,99.172,46.63370103]
[1646183578624,109.05,99.269,99.172,46.63370103]
[1646183578824,2.48972255,99.268,99.172,46.63370103]
[1646183579425,102.5,99.259,99.145,4.03]
[1646183579623,102.5,99.249,99.117,4.032]
[1646183579823,102.5,99.239,99.111,4.032]
[1646183580025,102.5,99.239,99.101,4.033]
[1646183580424,15.1318,99.23,99.11,50.4264]
[1646183580624,102.5,99.239,99.12,27.281]
[1646183580824,102.5,99.247,99.12,27.281]
[1646183581123,102.5,99.247,99.121,15.96035393]
[1646183581524,102.5,99.247,99.122,13.38669045]
[1646183582225,102.5,99.239,99.141,46.0098877]